bitfinex/quotes_SOLUSD_20250305
["timestamp","ask_amount","ask_price","bid_price","bid_amount"]
[1741156252306,81.83,142.37,142.33,31.97852341]
[1741156253115,102.18287455,142.37,142.33,18.64964886]
[1741156253406,13.32887455,142.36,142.33,18.64964886]
[1741156254113,13.32887455,142.35,142.33,18.64964886]
[1741156255009,20.35387455,142.35,142.33,18.64964886]
[1741156255207,13.35887455,142.34,142.33,18.64964886]
[1741156256011,13.64319769,142.34,142.33,18.64964886]
[1741156256212,82.08432314,142.33,142.27,13.4404]
[1741156256392,82.08432314,142.33,142.28,18.64964886]
[1741156256393,88.8265,142.32,142.28,18.64964886]
[1741156256588,95.41319769,142.31,142.28,18.64964886]
[1741156256790,13.32887455,142.3,142.25,13.32887455]
[1741156257110,13.32887455,142.3,142.25,18.64964886]
[1741156258895,20.35637455,142.3,142.25,18.64964886]
[1741156259313,95.12887455,142.29,142.25,18.64964886]
[1741156259910,0.28432314,142.28,142.23,13.32887455]
[1741156260116,13.61319769,142.28,142.22,13.32887455]
[1741156260412,13.32887455,142.26,142.2,28.46427455]
[1741156260916,7.0298,142.25,142.2,21.43217455]
[1741156261095,88.8298,142.25,142.21,18.64964886]
[1741156261407,102.15867455,142.25,142.21,18.64964886]
[1741156261807,102.15937455,142.24,142.2,18.64964886]
[1741156262111,102.15937455,142.24,142.18,0.033]
[1741156262112,13.32887455,142.22,142.18,0.033]
[1741156262311,0.28432314,142.2,142.18,0.033]
[1741156263324,13.61319769,142.2,142.18,0.033]
[1741156263488,96.92069769,142.19,142.18,0.033]
[1741156263690,20.0,142.17,142.16,0.033]
[1741156263918,0.28432314,142.16,142.15,0.033]
[1741156264596,21.14514834,142.16,142.15,0.033]
[1741156266205,0.28432314,142.16,142.15,0.033]
[1741156266400,21.14514834,142.16,142.15,0.033]
[1741156267413,21.00298677,142.18,142.15,0.033]
[1741156267615,22.3683252,142.19,142.15,0.033]
[1741156267806,102.6608252,142.18,142.15,0.033]
[1741156268003,20.8608252,142.16,142.15,0.033]
[1741156268204,28.17944834,142.16,142.15,0.033]
[1741156270322,31.62987372,142.16,142.15,0.033]
[1741156272626,20.8608252,142.16,142.15,0.033]
[1741156272920,21.14514834,142.16,142.15,0.033]
[1741156273100,28.17944834,142.16,142.15,0.033]
[1741156273298,21.14514834,142.16,142.15,0.033]
[1741156274107,20.8608252,142.18,142.15,0.033]
[1741156274306,0.28432314,142.17,142.15,0.033]
[1741156274511,20.8608252,142.18,142.15,0.033]
[1741156274726,0.28432314,142.17,142.15,0.033]
[1741156274895,20.8608252,142.17,142.15,0.033]
[1741156275100,21.14514834,142.16,142.15,0.033]
[1741156276227,28.17944834,142.16,142.15,0.033]
[1741156279011,0.28432314,142.16,142.15,0.033]
[1741156279516,20.0,142.18,142.15,0.033]
[1741156280425,20.8608252,142.16,142.15,0.033]
[1741156282119,27.8951252,142.16,142.15,0.033]
[1741156283017,20.8608252,142.16,142.15,0.033]
[1741156283217,28.17944834,142.16,142.15,0.033]
[1741156284339,20.28432314,142.14,142.13,0.033]
[1741156284641,0.28432314,142.13,142.11,0.033]
[1741156284839,21.14514834,142.12,142.11,0.033]
[1741156285945,28.18144834,142.12,142.11,0.033]
[1741156288333,20.8608252,142.12,142.11,0.033]
[1741156288721,21.14514834,142.12,142.11,0.033]
[1741156288926,20.8608252,142.12,142.11,0.033]
[1741156289125,21.14514834,142.12,142.11,0.033]
[1741156289631,0.28432314,142.12,142.11,0.033]
[1741156290744,28.18144834,142.12,142.11,0.033]
[1741156293243,0.28432314,142.11,142.1,0.033]
[1741156293424,21.14514834,142.11,142.1,0.033]
[1741156295426,20.8608252,142.11,142.1,0.033]
[1741156295743,28.18194834,142.11,142.1,0.033]
[1741156297657,0.14216157,142.11,142.1,0.033]
[1741156297831,20.8608252,142.13,142.1,0.033]
[1741156298027,27.8966252,142.13,142.1,0.033]
[1741156298346,21.14514834,142.12,142.1,0.033]
[1741156298834,21.00298677,142.12,142.1,0.033]
[1741156299241,7.17896157,142.11,142.1,0.033]
[1741156300257,28.18194834,142.11,142.1,0.033]
[1741156302347,0.03,142.16,142.1,0.033]
[1741156302644,0.28432314,142.15,142.1,39.54347406]
[1741156302846,21.14514834,142.15,142.1,18.68264886]
[1741156303147,20.8608252,142.15,142.1,18.68264886]
[1741156303323,0.28432314,142.14,142.1,18.68264886]
[1741156303740,0.28432314,142.15,142.1,25.71974886]
[1741156303960,0.28432314,142.15,142.1,46.58057406]
[1741156304250,0.03,142.16,142.1,46.58057406]
[1741156304627,0.03,142.16,142.11,20.8608252]
[1741156304828,0.31432314,142.16,142.11,20.8608252]
[1741156305134,0.03,142.16,142.13,39.51047406]
[1741156305645,0.03,142.16,142.14,7.0353]
[1741156305841,0.03,142.16,142.15,39.51047406]
[1741156306047,0.03,142.16,142.15,45.86647406]
[1741156307530,0.03,142.16,142.15,52.90127406]
[1741156308448,0.03,142.16,142.15,32.04044886]
[1741156309152,0.03,142.16,142.15,52.90127406]
[1741156311240,81.8,142.21,142.15,70.48827406]
[1741156311441,81.8,142.21,142.19,18.64964886]
[1741156311634,81.8,142.23,142.19,41.05457406]
[1741156312638,81.8,142.23,142.2,7.0323]
[1741156313354,81.8,142.23,142.21,18.64964886]
[1741156313533,81.8,142.23,142.22,7.0313]
[1741156314939,81.83,142.25,142.22,25.68094886]
[1741156315125,81.83,142.25,142.22,52.70227406]
[1741156315728,81.83,142.25,142.22,31.84144886]
[1741156315928,109.7206252,142.25,142.2,7.0322]
[1741156316342,109.7206252,142.25,142.2,18.64964886]
[1741156316855,102.6908252,142.25,142.2,18.64964886]
[1741156317034,81.83,142.25,142.2,18.64964886]
[1741156317236,81.83,142.25,142.2,25.68164886]
[1741156317448,81.83,142.25,142.2,46.54247406]
[1741156317649,81.83,142.25,142.22,18.64964886]
[1741156318152,81.83,142.25,142.21,18.64964886]
[1741156318343,0.28432314,142.24,142.21,18.64964886]
[1741156318550,0.28432314,142.24,142.19,8.5767]
[1741156318743,81.8,142.23,142.19,8.5767]
[1741156318930,81.8,142.23,142.19,29.4375252]
[1741156319132,81.8,142.23,142.2,25.68174886]
[1741156319334,81.8,142.23,142.22,18.64964886]
[1741156319534,0.03,142.25,142.22,18.64964886]
[1741156320348,0.03,142.25,142.23,18.64964886]
[1741156321057,0.03,142.25,142.21,20.8608252]
[1741156321637,0.03,142.25,142.22,25.68094886]
[1741156322034,0.03,142.25,142.22,18.64964886]
[1741156322435,0.03,142.25,142.22,39.51047406]
[1741156322636,0.03,142.25,142.24,45.62707406]
[1741156322849,0.03,142.25,142.24,52.40227406]
[1741156323153,0.03,142.27,142.25,18.64964886]
[1741156323359,0.03,142.31,142.27,18.64964886]
[1741156323658,0.03,142.31,142.3,46.53787406]
[1741156331263,0.03,142.31,142.3,54.51317406]
[1741156331986,0.03,142.33,142.31,18.64964886]
[1741156332139,0.03,142.33,142.32,44.73047406]
[1741156332943,0.03,142.33,142.32,51.75687406]
[1741156333143,0.03,142.33,142.32,30.89604886]
[1741156333350,0.03,142.33,142.32,51.75687406]
[1741156333743,0.03,142.33,142.32,44.73047406]
[1741156334483,0.03,142.33,142.32,51.75687406]
[1741156334654,0.03,142.33,142.32,44.73047406]
[1741156334964,0.03,142.33,142.32,23.86964886]
[1741156336250,0.03,142.33,142.32,51.75687406]
[1741156337563,0.03,142.33,142.32,44.73047406]
[1741156337753,0.03,142.33,142.32,23.86964886]
[1741156338268,0.03,142.33,142.32,51.75687406]
[1741156339954,0.03,142.33,142.32,44.73047406]
[1741156340154,0.03,142.33,142.32,23.86964886]
[1741156341862,21.17514834,142.33,142.32,18.64964886]
[1741156342370,82.08432314,142.32,142.26,6.2703]
[1741156342565,102.6608252,142.31,142.25,5.22]
[1741156342765,102.6608252,142.31,142.26,18.64964886]
[1741156342972,102.6608252,142.31,142.26,39.51047406]
[1741156342973,81.8,142.31,142.26,39.51047406]
[1741156343172,81.8,142.31,142.28,18.64964886]
[1741156343372,81.8,142.31,142.28,39.51047406]
[1741156343551,81.8,142.31,142.28,18.64964886]
[1741156343758,81.8,142.31,142.27,18.64964886]
[1741156343963,109.6877252,142.31,142.27,18.64964886]
[1741156344171,109.6877252,142.31,142.25,26.0808252]
[1741156345179,109.6877252,142.31,142.22,107.1809]
[1741156345180,89.11192314,142.3,142.24,20.8608252]
[1741156345381,109.97274834,142.3,142.23,12.2508]
[1741156345592,102.6608252,142.29,142.23,20.8608252]
[1741156345764,102.6608252,142.29,142.22,41.1148252]
[1741156346359,102.6608252,142.29,142.23,18.64964886]
[1741156346564,109.97344834,142.28,142.23,18.64964886]
[1741156346787,20.8608252,142.27,142.22,0.033]
[1741156346999,81.8,142.26,142.22,18.68264886]
[1741156347182,102.6608252,142.26,142.22,18.68264886]
[1741156347368,81.8,142.26,142.22,18.68264886]
[1741156347869,81.8,142.26,142.22,46.57477406]
[1741156348486,81.8,142.26,142.22,39.54347406]
[1741156348675,81.8,142.26,142.22,18.68264886]
[1741156349001,81.8,142.26,142.22,0.033]
[1741156349002,109.6902252,142.26,142.22,0.033]
[1741156349786,81.8,142.26,142.22,0.033]
[1741156350282,81.8,142.26,142.22,7.0643]
[1741156350466,81.8,142.26,142.22,0.033]
[1741156352084,88.8295,142.26,142.22,0.033]
[1741156352286,0.28432314,142.25,142.22,0.033]
[1741156352600,21.14514834,142.25,142.22,0.033]
[1741156352975,0.28432314,142.25,142.22,0.033]
[1741156353197,81.8,142.26,142.22,20.8938252]
[1741156353388,81.8,142.26,142.23,18.64964886]
[1741156354805,81.8,142.26,142.22,18.68264886]
[1741156355186,81.8,142.26,142.22,7.0642]
[1741156355384,81.8,142.26,142.23,18.64964886]
[1741156356874,81.8,142.26,142.23,25.68024886]
[1741156359308,81.8,142.29,142.25,39.51047406]
[1741156359508,81.8,142.29,142.26,20.8608252]
[1741156359705,81.8,142.29,142.26,18.64964886]
[1741156360396,81.8,142.29,142.25,7.0297]
[1741156361108,0.28432314,142.28,142.23,20.8608252]
[1741156361312,102.6608252,142.27,142.23,7.0308]
[1741156361706,102.6608252,142.27,142.24,18.64964886]
[1741156362293,81.8,142.27,142.22,39.54347406]
[1741156362501,81.8,142.26,142.22,39.54347406]
[1741156363105,81.8,142.26,142.24,18.64964886]
[1741156364406,81.8,142.26,142.24,25.67974886]
[1741156368414,81.8,142.28,142.24,25.67974886]
[1741156373018,81.8,142.28,142.24,25.71274886]
[1741156374215,81.8,142.27,142.24,25.71274886]
[1741156374902,81.8,142.27,142.24,46.57357406]
[1741156375917,81.8,142.3,142.24,46.57357406]
[1741156376098,81.8,142.29,142.26,18.64964886]
[1741156376799,81.83,142.31,142.26,39.51047406]
[1741156377028,81.83,142.31,142.28,18.64964886]
[1741156379218,81.83,142.31,142.27,25.67844886]
[1741156379423,81.83,142.31,142.27,43.25064886]
[1741156379625,81.83,142.31,142.27,64.11147406]
[1741156382230,102.6908252,142.31,142.27,18.64964886]
[1741156382529,102.6908252,142.31,142.24,0.033]
[1741156382530,21.14514834,142.28,142.24,0.033]
[1741156382715,81.8,142.27,142.24,0.033]
[1741156383806,81.8,142.27,142.24,18.68264886]
[1741156384020,81.8,142.27,142.24,39.54347406]
[1741156384227,81.8,142.27,142.26,39.51047406]
[1741156384728,81.8,142.27,142.26,18.64964886]
[1741156386003,81.8,142.27,142.26,25.67894886]
[1741156386208,81.8,142.3,142.26,25.67894886]
[1741156386408,81.8,142.3,142.26,18.64964886]
[1741156386609,21.14514834,142.29,142.24,7.0632]
[1741156387121,0.28432314,142.29,142.25,18.64964886]
[1741156387431,81.8,142.3,142.25,39.51047406]
[1741156388135,81.8,142.3,142.26,7.0293]
[1741156388318,102.6608252,142.3,142.25,25.67934886]
[1741156388625,21.14514834,142.29,142.24,7.0632]
[1741156389207,21.14514834,142.29,142.25,18.64964886]
[1741156389620,21.14514834,142.29,142.25,7.0297]
[1741156390709,0.28432314,142.29,142.25,18.64964886]
[1741156390910,81.8,142.3,142.25,18.64964886]
[1741156392137,81.8,142.29,142.26,7.0293]
[1741156392431,81.8,142.29,142.25,25.67934886]
[1741156393230,81.83,142.31,142.27,18.64964886]
[1741156393529,81.83,142.31,142.27,39.51047406]
[1741156393911,81.83,142.31,142.29,18.64964886]
[1741156394108,81.83,142.31,142.3,7.0274]
[1741156395727,0.03,142.31,142.3,25.67704886]
[1741156396531,0.03,142.31,142.3,46.53787406]
[1741156401547,0.03,142.31,142.3,25.67704886]
[1741156402419,0.03,142.31,142.3,18.64964886]
[1741156402619,81.8,142.3,142.28,5.22]
[1741156403650,81.8,142.3,142.29,18.64964886]
[1741156404527,81.8,142.3,142.28,18.64964886]
[1741156405245,81.8,142.3,142.27,18.68264886]
[1741156405846,81.8,142.3,142.27,0.033]
[1741156406047,81.8,142.3,142.27,7.0617]
[1741156406627,81.8,142.3,142.28,18.64964886]
[1741156408444,81.8,142.3,142.29,7.0279]
[1741156408652,81.8,142.3,142.29,25.67754886]
[1741156409825,0.03,142.31,142.29,25.67754886]
[1741156410036,0.03,142.31,142.3,31.96334301]
[1741156410531,0.03,142.31,142.3,38.99074301]
[1741156412624,0.0001,142.31,142.3,46.46622874]
[1741156412829,0.0001,142.31,142.3,128.06622874]
[1741156415140,0.03,142.33,142.32,38.64964886]
[1741156415341,0.03,142.33,142.32,64.63882874]
[1741156415932,0.03,142.34,142.33,18.64964886]
[1741156416139,0.03,142.34,142.33,121.03882874]
[1741156416354,0.03,142.34,142.3,319.0274]
[1741156416554,0.03,142.34,142.3,7.0274]
[1741156417153,0.03,142.34,142.31,39.43882874]
[1741156417548,0.03,142.34,142.33,38.64964886]
[1741156417753,0.03,142.34,142.33,59.43882874]
[1741156419336,0.03,142.34,142.33,66.46472874]
[1741156420153,0.03,142.34,142.33,18.64964886]
[1741156421253,0.03,142.34,142.29,20.78917988]
[1741156421453,88.8259,142.33,142.28,20.82217988]
[1741156421656,111.19167988,142.33,142.28,0.033]
[1741156422559,102.87350302,142.32,142.28,18.68264886]
[1741156422763,20.78917988,142.31,142.28,18.68264886]
[1741156422956,81.8,142.3,142.28,0.033]
[1741156423160,102.87350302,142.29,142.28,0.033]
[1741156425162,102.58917988,142.29,142.28,0.033]
[1741156425351,81.8,142.29,142.28,0.033]
[1741156427452,82.08432314,142.29,142.28,0.033]
[1741156427651,28.10140302,142.29,142.28,0.033]
[1741156429054,27.29757988,142.31,142.28,0.033]
[1741156429375,81.8,142.32,142.28,18.68264886]
[1741156429670,81.8,142.32,142.28,39.47182874]
[1741156429865,81.8,142.32,142.29,20.78917988]
[1741156430063,81.8,142.32,142.3,18.64964886]
[1741156431473,81.8,142.32,142.3,25.67674886]
[1741156432752,81.8,142.32,142.3,18.64964886]
[1741156433056,102.58917988,142.32,142.28,7.0612]
[1741156433264,102.58917988,142.32,142.28,18.68264886]
[1741156433761,81.8,142.32,142.28,18.68264886]
[1741156434877,102.58917988,142.32,142.28,18.68264886]
[1741156435177,81.8,142.32,142.28,18.68264886]
[1741156435676,81.8,142.32,142.3,18.64964886]
[1741156438276,81.8,142.32,142.28,46.50002874]
[1741156438490,81.8,142.32,142.29,39.43882874]
[1741156439280,81.8,142.32,142.29,18.64964886]
[1741156440381,81.8,142.32,142.3,7.0274]
[1741156440582,81.8,142.32,142.29,25.67734886]
[1741156441879,81.8,142.32,142.28,7.0612]
[1741156442878,81.8,142.32,142.28,0.033]
[1741156443384,81.8,142.32,142.29,18.64964886]
[1741156443581,81.8,142.32,142.3,18.64964886]
[1741156443786,0.03,142.34,142.32,18.64964886]
[1741156444665,0.03,142.34,142.3,20.78917988]
[1741156445060,0.03,142.34,142.31,18.64964886]
[1741156445686,0.03,142.34,142.31,46.46542874]
[1741156445883,0.03,142.34,142.33,39.43882874]
[1741156446075,0.03,142.34,142.33,18.64964886]
[1741156447082,0.03,142.34,142.33,25.67554886]
[1741156447888,0.03,142.34,142.32,25.67594886]
[1741156450387,0.03,142.34,142.33,39.43882874]
[1741156450966,0.03,142.34,142.33,351.43882874]
[1741156452476,0.03,142.34,142.33,358.46472874]
[1741156453091,0.03,142.37,142.36,20.0]
[1741156453290,0.03,142.37,142.36,64.63882874]
[1741156453595,0.03,142.38,142.37,18.64964886]
[1741156453768,0.03,142.38,142.37,39.43882874]
[1741156453971,0.0001,142.38,142.37,121.03882874]
[1741156454186,0.0001,142.38,142.37,149.42255605]
[1741156454376,0.0001,142.38,142.37,154.97220862]
[1741156454576,0.0001,142.38,142.37,134.18302874]
[1741156455591,0.03,142.43,142.4,38.64964886]
[1741156455787,0.03,142.43,142.42,39.43882874]
[1741156457684,0.03,142.43,142.42,46.46022874]
[1741156457991,0.03,142.43,142.42,39.43882874]
[1741156465407,0.03,142.43,142.42,18.64964886]
[1741156467714,7.0509,142.43,142.42,18.64964886]
[1741156468296,7.33522314,142.43,142.4,0.033]
[1741156468497,102.58917988,142.42,142.4,0.033]
[1741156469118,81.8,142.42,142.4,0.033]
[1741156469722,88.8219,142.42,142.4,0.033]
[1741156470126,81.8,142.42,142.4,0.033]
[1741156471492,81.8,142.42,142.4,18.68264886]
[1741156472413,81.8,142.42,142.4,25.70504886]
[1741156472622,81.8,142.42,142.4,18.68264886]
[1741156477729,81.8,142.42,142.4,0.033]
[1741156480531,81.8,142.41,142.4,0.033]
[1741156486025,81.8,142.41,142.4,18.68264886]
[1741156486534,81.8,142.41,142.4,0.033]
[1741156486707,81.8,142.41,142.4,18.68264886]
[1741156488640,81.8,142.41,142.4,0.033]
[1741156488942,81.8,142.41,142.4,7.0554]
[1741156489744,0.03,142.42,142.4,20.34751939]
[1741156490052,0.03,142.42,142.41,31.94176825]
[1741156490937,0.03,142.42,142.41,38.96366825]
[1741156492441,0.03,142.42,142.41,18.64964886]
[1741156493232,0.03,142.42,142.4,0.033]
[1741156493406,0.03,142.42,142.4,18.68264886]
[1741156494323,0.03,142.42,142.4,25.70504886]
[1741156494616,0.03,142.42,142.4,46.47351279]
[1741156494816,0.03,142.42,142.41,39.41811279]
[1741156495647,0.03,142.42,142.41,25.67154886]
[1741156496847,0.03,142.42,142.41,46.44001279]
[1741156498516,0.03,142.42,142.41,25.67154886]
[1741156501030,0.03,142.42,142.41,18.64964886]
[1741156502654,0.03,142.42,142.41,25.67154886]
[1741156503446,0.03,142.42,142.41,46.44001279]
[1741156504351,0.03,142.43,142.42,18.64964886]
[1741156504539,0.03,142.43,142.42,39.41811279]
[1741156504952,0.03,142.43,142.42,18.64964886]
[1741156505742,0.03,142.43,142.41,18.64964886]
[1741156505947,0.03,142.43,142.42,20.76846393]
[1741156506250,0.03,142.43,142.42,18.64964886]
[1741156506951,0.28432314,142.41,142.4,0.033]
[1741156507257,21.05278707,142.41,142.4,0.033]
[1741156510270,0.28432314,142.41,142.4,0.033]
[1741156511069,21.05278707,142.41,142.4,0.033]
[1741156513379,28.07468707,142.41,142.4,0.033]
[1741156514387,21.05278707,142.41,142.4,0.033]
[1741156514781,28.07468707,142.41,142.34,26.5760022]
[1741156514987,102.56846393,142.4,142.34,20.76846393]
[1741156516566,95.10234064,142.4,142.34,20.32774064]
[1741156517204,95.38666378,142.39,142.33,26.59914064]
[1741156517374,82.08432314,142.39,142.32,7.0264]
[1741156517574,82.08432314,142.39,142.32,20.32874064]
[1741156517781,13.30234064,142.38,142.33,18.64964886]
[1741156517975,95.10234064,142.37,142.31,7.0268]
[1741156518299,95.10234064,142.37,142.3,13.30234064]
[1741156518300,13.58666378,142.36,142.3,20.32954064]
[1741156518474,81.8,142.35,142.3,20.32954064]
[1741156518675,81.8,142.35,142.31,18.64964886]
[1741156518878,81.8,142.35,142.32,13.30234064]
[1741156519087,81.8,142.35,142.33,31.9519895]
[1741156519275,83.3145,142.38,142.33,31.9519895]
[1741156520063,83.3145,142.38,142.34,13.30234064]
[1741156520270,83.3145,142.38,142.35,18.64964886]
[1741156520783,83.3145,142.38,142.35,25.67414886]
[1741156521983,83.3145,142.38,142.34,7.0252]
[1741156522166,96.61684064,142.38,142.35,18.64964886]
[1741156523281,96.61684064,142.38,142.33,7.0587]
[1741156523903,83.3145,142.38,142.33,25.70834886]
[1741156524494,81.8,142.38,142.33,25.70834886]
[1741156524704,81.8,142.38,142.33,39.0106895]
[1741156524900,81.8,142.38,142.34,18.64964886]
[1741156525404,81.8,142.38,142.34,31.9519895]
[1741156525582,81.8,142.38,142.34,38.9769895]
[1741156526580,81.8,142.38,142.37,18.64964886]
[1741156528784,81.8,142.38,142.35,7.0248]
[1741156529807,81.8,142.38,142.35,18.64964886]
[1741156531007,81.8,142.38,142.35,31.9519895]
[1741156531714,81.83,142.4,142.35,31.9519895]
[1741156532989,102.15474064,142.4,142.34,7.0254]
[1741156533196,81.8,142.39,142.34,7.0254]
[1741156533613,81.8,142.39,142.35,18.64964886]
[1741156534813,0.28432314,142.38,142.35,18.64964886]
[1741156535016,13.30234064,142.37,142.33,0.033]
[1741156535212,81.8,142.36,142.33,0.033]
[1741156535617,95.10234064,142.36,142.33,0.033]
[1741156535795,81.8,142.36,142.33,0.033]
[1741156535991,81.8,142.36,142.34,18.64964886]
[1741156536907,81.8,142.36,142.34,25.67494886]
[1741156538799,81.8,142.39,142.34,38.9772895]
[1741156539322,81.8,142.39,142.35,13.30234064]
[1741156539820,13.30234064,142.37,142.33,0.033]
[1741156540110,13.30234064,142.35,142.33,0.033]
[1741156541099,20.32744064,142.35,142.33,0.033]
[1741156541690,13.58666378,142.34,142.33,0.033]
[1741156543124,20.61206378,142.34,142.33,0.033]
[1741156543335,13.58666378,142.34,142.33,0.033]
[1741156543619,20.61206378,142.34,142.33,0.033]
[1741156543923,13.58666378,142.34,142.33,0.033]
[1741156545313,1.5919,142.36,142.33,0.033]
[1741156545520,13.30234064,142.35,142.33,0.033]
[1741156545717,13.30234064,142.34,142.33,0.033]
[1741156546019,13.58666378,142.34,142.33,0.033]
[1741156548720,13.30234064,142.34,142.33,0.033]
[1741156549030,13.30234064,142.35,142.33,0.033]
[1741156549399,0.28432314,142.35,142.33,0.033]
[1741156549909,14.89424064,142.36,142.33,0.033]
[1741156551099,1.5919,142.36,142.33,0.033]
[1741156551725,0.28432314,142.37,142.33,0.033]
[1741156552233,0.03,142.38,142.33,31.9849895]
[1741156552431,0.03,142.38,142.35,13.30234064]
[1741156552610,0.03,142.38,142.37,18.64964886]
[1741156553900,0.03,142.38,142.37,31.9519895]
[1741156555330,0.03,142.38,142.37,38.9758895]
[1741156556928,0.03,142.42,142.39,42.557972]
[1741156557126,0.03,142.42,142.41,38.2684895]
[1741156557427,0.03,142.42,142.41,38.55281264]
[1741156557727,0.03,142.42,142.41,38.2684895]
[1741156558726,0.0001,142.42,142.41,38.2684895]
[1741156559050,0.03,142.48,142.42,43.22474886]
[1741156559336,0.03,142.48,142.47,31.9519895]
[1741156560638,0.03,142.48,142.47,39.39022302]
[1741156561231,0.03,142.48,142.47,18.64964886]
[1741156561546,0.03,142.48,142.47,39.39022302]
[1741156561846,0.03,142.48,142.47,46.40922302]
[1741156562044,0.03,142.48,142.47,39.39022302]
[1741156562255,0.03,142.48,142.45,25.94057416]
[1741156562751,0.03,142.48,142.46,39.39022302]
[1741156563263,0.03,142.48,142.47,20.74057416]
[1741156563662,0.03,142.48,142.47,39.39022302]
[1741156565730,0.03,142.48,142.47,18.64964886]
[1741156566156,0.03,142.48,142.47,39.39022302]
[1741156566349,0.03,142.48,142.47,18.64964886]
[1741156566531,0.03,142.48,142.47,39.39022302]
[1741156566847,0.03,142.48,142.47,18.64964886]
[1741156567733,0.03,142.48,142.47,39.39022302]
[1741156567928,0.03,142.48,142.47,18.64964886]
[1741156568339,0.03,142.48,142.47,46.40922302]
[1741156575430,0.03,142.48,142.47,52.57602302]
[1741156576137,0.03,142.48,142.47,134.17602302]
[1741156578541,0.0001,142.48,142.47,134.46034616]
[1741156579241,0.03,142.53,142.5,20.0]
[1741156579442,0.03,142.53,142.52,39.39022302]
[1741156580051,0.03,142.53,142.52,60.13079718]
[1741156580346,0.03,142.53,142.52,39.39022302]
[1741156581273,0.03,142.53,142.52,46.40672302]
[1741156581466,0.03,142.53,142.52,67.14729718]
[1741156581773,27.75287416,142.61,142.52,67.14729718]
[1741156581774,1.9868247,142.62,142.53,24.93624886]
[1741156581983,1.9868247,142.62,142.58,20.74057416]
[1741156582146,1.9868247,142.62,142.61,20.74057416]
[1741156582487,1.9868247,142.62,142.61,39.39022302]
[1741156583275,1.9868247,142.62,142.61,46.40232302]
[1741156584783,2.0168247,142.62,142.61,46.40232302]
[1741156585870,2.47e-05,142.62,142.61,46.40232302]
[1741156587155,81.8,142.61,142.56,7.0145]
[1741156587363,81.8,142.61,142.57,20.74057416]
[1741156587559,81.8,142.61,142.56,20.74057416]
[1741156587771,102.54057416,142.61,142.55,20.74057416]
[1741156588072,81.8,142.6,142.55,20.74057416]
[1741156588271,102.54057416,142.6,142.54,20.74057416]
[1741156588854,102.54057416,142.6,142.55,18.64964886]
[1741156589380,88.8126,142.6,142.55,18.64964886]
[1741156589878,81.8,142.59,142.56,18.64964886]
[1741156593181,81.8,142.59,142.56,20.74057416]
[1741156593368,81.8,142.59,142.56,18.64964886]
[1741156595568,88.8131,142.59,142.56,18.64964886]
[1741156596078,88.8131,142.59,142.54,18.64964886]
[1741156596281,88.8131,142.59,142.54,20.74057416]
[1741156596482,21.0248973,142.58,142.53,25.92057416]
[1741156596672,81.8,142.57,142.56,0.033]
[1741156597472,1.90562314,142.56,142.45,81.6]
[1741156597680,20.88273573,142.54,142.48,20.74057416]
[1741156597879,81.8,142.53,142.48,20.74057416]
[1741156598182,81.8,142.53,142.49,18.64964886]
[1741156598384,81.8,142.53,142.47,39.39022302]
[1741156598556,88.8163,142.53,142.47,39.39022302]
[1741156599176,0.28432314,142.52,142.46,20.74057416]
[1741156599379,21.0248973,142.52,142.46,20.74057416]
[1741156599561,20.74057416,142.51,142.45,25.92057416]
[1741156599764,81.8,142.5,142.45,20.74057416]
[1741156600272,81.8,142.5,142.46,18.64964886]
[1741156602383,81.8,142.5,142.47,18.64964886]
[1741156602683,81.8,142.5,142.45,20.74057416]
[1741156603066,81.8,142.49,142.46,18.64964886]